[Event "Titled Tuesday Blitz March 14 Late 2023"]
[White "Estrada Nieto, Julian"]
[Black "Dahl, Trygve"]
[WhiteFideId "5101018"]
[BlackFideId "1513427"]
[WhiteElo "2176"]
[BlackElo "2125"]
[Result "1-0"]
[Round "05"]
[TimeControl "180+1"]
[Date "2023.03.14"]
[WhiteClock "0:00:07"]
[BlackClock "0:00:09"]

1. e4 {[%clk 0:03:00]}  e5 {[%clk 0:02:59]} 2. Nf3 {[%clk 0:03:00]}  Nf6 {[%clk 0:02:59]} 3. d4 {[%clk 0:02:59]}  Nxe4 {[%clk 0:02:58]} 4. Bd3 {[%clk 0:02:59]}  d5 {[%clk 0:02:59]} 5. Nxe5 {[%clk 0:02:59]}  Be7 {[%clk 0:02:57]} 6. O-O {[%clk 0:02:57]}  O-O {[%clk 0:02:56]} 7. Nc3 {[%clk 0:02:57]}  Nf6 {[%clk 0:02:53]} 8. Bg5 {[%clk 0:02:54]}  Nbd7 {[%clk 0:02:50]} 9. Re1 {[%clk 0:02:38]}  Re8 {[%clk 0:02:46]} 10. Qf3 {[%clk 0:02:20]}  c6 {[%clk 0:02:43]} 11. h3 {[%clk 0:02:11]}  Nf8 {[%clk 0:02:37]} 12. Re2 {[%clk 0:01:53]}  Ng6 {[%clk 0:02:29]} 13. Rae1 {[%clk 0:01:46]}  Qc7 {[%clk 0:02:18]} 14. Bxf6 {[%clk 0:01:36]}  Bxf6 {[%clk 0:02:13]} 15. Ng4 {[%clk 0:01:08]}  Rxe2 {[%clk 0:02:03]} 16. Nxf6+ {[%clk 0:01:08]}  gxf6 {[%clk 0:02:03]} 17. Rxe2 {[%clk 0:01:05]}  Kg7 {[%clk 0:02:01]} 18. Nd1 {[%clk 0:00:48]}  Be6 {[%clk 0:01:55]} 19. Ne3 {[%clk 0:00:46]}  Qf4 {[%clk 0:01:53]} 20. Qxf4 {[%clk 0:00:38]}  Nxf4 {[%clk 0:01:52]} 21. Rd2 {[%clk 0:00:38]}  Rg8 {[%clk 0:01:39]} 22. Kh2 {[%clk 0:00:37]}  Kf8 {[%clk 0:01:33]} 23. h4 {[%clk 0:00:34]}  h5 {[%clk 0:01:03]} 24. g3 {[%clk 0:00:34]}  Ng6 {[%clk 0:01:02]} 25. Nf5 {[%clk 0:00:32]}  Bxf5 {[%clk 0:01:02]} 26. Bxf5 {[%clk 0:00:32]}  Ne7 {[%clk 0:01:02]} 27. Bd3 {[%clk 0:00:32]}  Ke8 {[%clk 0:01:01]} 28. Be2 {[%clk 0:00:31]}  Rh8 {[%clk 0:01:01]} 29. Bf3 {[%clk 0:00:26]}  Kd7 {[%clk 0:00:59]} 30. Rd3 {[%clk 0:00:26]}  Nf5 {[%clk 0:00:57]} 31. Bg2 {[%clk 0:00:21]}  Nd6 {[%clk 0:00:50]} 32. Ra3 {[%clk 0:00:15]}  a6 {[%clk 0:00:48]} 33. Rf3 {[%clk 0:00:15]}  f5 {[%clk 0:00:46]} 34. Bh3 {[%clk 0:00:15]}  Ke6 {[%clk 0:00:47]} 35. Re3+ {[%clk 0:00:15]}  Kf6 {[%clk 0:00:46]} 36. Kg2 {[%clk 0:00:14]}  Re8 {[%clk 0:00:46]} 37. Rxe8 {[%clk 0:00:13]}  Nxe8 {[%clk 0:00:46]} 38. Kf3 {[%clk 0:00:13]}  Nd6 {[%clk 0:00:44]} 39. b3 {[%clk 0:00:12]}  Ne4 {[%clk 0:00:44]} 40. Ke3 {[%clk 0:00:12]}  Nc3 {[%clk 0:00:43]} 41. a4 {[%clk 0:00:11]}  Ne4 {[%clk 0:00:39]} 42. Bf1 {[%clk 0:00:11]}  Nd6 {[%clk 0:00:36]} 43. Be2 {[%clk 0:00:10]}  Kg6 {[%clk 0:00:33]} 44. Kf4 {[%clk 0:00:11]}  f6 {[%clk 0:00:32]} 45. f3 {[%clk 0:00:11]}  Ne8 {[%clk 0:00:25]} 46. Bd3 {[%clk 0:00:10]}  Ng7 {[%clk 0:00:25]} 47. g4 {[%clk 0:00:09]}  Ne6+ {[%clk 0:00:25]} 48. Ke3 {[%clk 0:00:08]}  Ng7 {[%clk 0:00:22]} 49. gxf5+ {[%clk 0:00:08]}  Kf7 {[%clk 0:00:21]} 50. Kf4 {[%clk 0:00:07]}  Ne8 {[%clk 0:00:19]} 51. Ke3 {[%clk 0:00:06]}  Kg7 {[%clk 0:00:19]} 52. f4 {[%clk 0:00:06]}  Nd6 {[%clk 0:00:19]} 53. c4 {[%clk 0:00:05]}  Ne8 {[%clk 0:00:15]} 54. c5 {[%clk 0:00:05]}  Kh6 {[%clk 0:00:15]} 55. Be2 {[%clk 0:00:05]}  Ng7 {[%clk 0:00:15]} 56. Bd3 {[%clk 0:00:05]}  Ne8 {[%clk 0:00:14]} 57. Kd2 {[%clk 0:00:05]}  Nc7 {[%clk 0:00:12]} 58. Kc3 {[%clk 0:00:05]}  Na8 {[%clk 0:00:12]} 59. Kb4 {[%clk 0:00:05]}  Nc7 {[%clk 0:00:11]} 60. Ka5 {[%clk 0:00:05]}  Na8 {[%clk 0:00:11]} 61. b4 {[%clk 0:00:05]}  Kg7 {[%clk 0:00:10]} 62. b5 {[%clk 0:00:05]}  cxb5 {[%clk 0:00:10]} 63. axb5 {[%clk 0:00:06]}  axb5 {[%clk 0:00:10]} 64. Kxb5 {[%clk 0:00:06]}  Kh6 {[%clk 0:00:11]} 65. c6 {[%clk 0:00:07]}  b6 {[%clk 0:00:09]} 66. Ka6 {[%clk 0:00:06]}  b5 {[%clk 0:00:09]} 67. Kb7 {[%clk 0:00:07]} 1-0


[Site "https://www.chess.com"]

[Event "Titled Tuesday Blitz March 14 Late 2023"]
[White "Fernandez Garcia, Gumersindo"]
[Black "Urazayev, Arystanbek"]
[WhiteFideId "24516740"]
[BlackFideId "13709810"]
[WhiteElo "2093"]
[BlackElo "2479"]
[Result "1-0"]
[Round "05"]
[TimeControl "180+1"]
[Date "2023.03.14"]
[WhiteClock "0:00:26"]
[BlackClock "0:00:13"]

1. Nf3 {[%clk 0:02:56]}  d5 {[%clk 0:02:58]} 2. e3 {[%clk 0:02:53]}  Nf6 {[%clk 0:02:58]} 3. c4 {[%clk 0:02:52]}  c6 {[%clk 0:02:58]} 4. Nc3 {[%clk 0:02:50]}  a6 {[%clk 0:02:56]} 5. b3 {[%clk 0:02:47]}  b5 {[%clk 0:02:52]} 6. cxd5 {[%clk 0:02:45]}  cxd5 {[%clk 0:02:52]} 7. Bb2 {[%clk 0:02:44]}  Bf5 {[%clk 0:02:51]} 8. d3 {[%clk 0:02:44]}  e6 {[%clk 0:02:51]} 9. Be2 {[%clk 0:02:43]}  Nbd7 {[%clk 0:02:52]} 10. O-O {[%clk 0:02:43]}  Be7 {[%clk 0:02:52]} 11. Nd4 {[%clk 0:02:40]}  Rc8 {[%clk 0:02:44]} 12. Nxf5 {[%clk 0:02:38]}  exf5 {[%clk 0:02:44]} 13. Bf3 {[%clk 0:02:36]}  Ne5 {[%clk 0:02:42]} 14. Be2 {[%clk 0:02:23]}  Ng6 {[%clk 0:02:42]} 15. Bf3 {[%clk 0:02:17]}  O-O {[%clk 0:02:37]} 16. Rc1 {[%clk 0:02:15]}  f4 {[%clk 0:02:31]} 17. exf4 {[%clk 0:02:07]}  Nxf4 {[%clk 0:02:28]} 18. Ne2 {[%clk 0:02:05]}  Rxc1 {[%clk 0:02:26]} 19. Bxc1 {[%clk 0:01:58]}  Ne6 {[%clk 0:02:26]} 20. Bb2 {[%clk 0:01:56]}  d4 {[%clk 0:02:26]} 21. Qd2 {[%clk 0:01:51]}  h6 {[%clk 0:02:21]} 22. g3 {[%clk 0:01:44]}  Qb6 {[%clk 0:02:08]} 23. Rc1 {[%clk 0:01:42]}  Rd8 {[%clk 0:02:07]} 24. h4 {[%clk 0:01:37]}  Nd5 {[%clk 0:02:02]} 25. Kg2 {[%clk 0:01:32]}  Bb4 {[%clk 0:01:57]} 26. Qc2 {[%clk 0:01:26]}  Nc3 {[%clk 0:01:56]} 27. Nxc3 {[%clk 0:01:16]}  dxc3 {[%clk 0:01:56]} 28. Bxc3 {[%clk 0:01:16]}  Bxc3 {[%clk 0:01:32]} 29. Qxc3 {[%clk 0:01:14]}  Nd4 {[%clk 0:01:32]} 30. Qc7 {[%clk 0:00:58]}  Qf6 {[%clk 0:01:31]} 31. Be4 {[%clk 0:00:55]}  h5 {[%clk 0:01:27]} 32. f4 {[%clk 0:00:42]}  g6 {[%clk 0:01:26]} 33. Qe5 {[%clk 0:00:40]}  Qb6 {[%clk 0:01:24]} 34. Rc7 {[%clk 0:00:38]}  Ne6 {[%clk 0:00:48]} 35. Re7 {[%clk 0:00:36]}  Nf8 {[%clk 0:00:16]} 36. Bd5 {[%clk 0:00:31]}  Rd7 {[%clk 0:00:15]} 37. Bxf7+ {[%clk 0:00:30]}  Kh7 {[%clk 0:00:15]} 38. Bxg6+ {[%clk 0:00:26]}  Kxg6 {[%clk 0:00:13]} 39. Qg5# {[%clk 0:00:26]} 1-0


[Site "https://www.chess.com"]

[Event "Titled Tuesday Blitz March 14 Late 2023"]
[White "Filgueira, Hernan"]
[Black "Baches Garcia, Guillermo"]
[WhiteFideId "101770"]
[BlackFideId "2209764"]
[WhiteElo "2363"]
[BlackElo "2464"]
[Result "1-0"]
[Round "05"]
[TimeControl "180+1"]
[Date "2023.03.14"]
[WhiteClock "0:00:07"]
[BlackClock "0:00:06"]

1. c4 {[%clk 0:02:58]}  e6 {[%clk 0:02:59]} 2. Nc3 {[%clk 0:02:58]}  d5 {[%clk 0:02:59]} 3. d4 {[%clk 0:02:57]}  Nf6 {[%clk 0:03:00]} 4. cxd5 {[%clk 0:02:56]}  Nxd5 {[%clk 0:03:01]} 5. e3 {[%clk 0:02:56]}  c5 {[%clk 0:03:00]} 6. Nf3 {[%clk 0:02:55]}  cxd4 {[%clk 0:02:58]} 7. exd4 {[%clk 0:02:54]}  Nxc3 {[%clk 0:02:58]} 8. bxc3 {[%clk 0:02:54]}  Qc7 {[%clk 0:02:58]} 9. Bd2 {[%clk 0:02:46]}  Nd7 {[%clk 0:02:58]} 10. Bd3 {[%clk 0:02:45]}  Bd6 {[%clk 0:02:58]} 11. O-O {[%clk 0:02:42]}  b6 {[%clk 0:02:57]} 12. Qe2 {[%clk 0:02:31]}  Bb7 {[%clk 0:02:52]} 13. h3 {[%clk 0:02:30]}  O-O {[%clk 0:02:48]} 14. c4 {[%clk 0:02:27]}  Rae8 {[%clk 0:02:41]} 15. Ng5 {[%clk 0:02:19]}  Nf6 {[%clk 0:02:30]} 16. f4 {[%clk 0:02:17]}  h6 {[%clk 0:02:27]} 17. Nf3 {[%clk 0:01:49]}  Bxf4 {[%clk 0:02:09]} 18. Ne5 {[%clk 0:01:40]}  Bxe5 {[%clk 0:01:59]} 19. dxe5 {[%clk 0:01:40]}  Nd7 {[%clk 0:01:59]} 20. Rae1 {[%clk 0:01:39]}  Nc5 {[%clk 0:01:52]} 21. Bc2 {[%clk 0:01:34]}  Rd8 {[%clk 0:01:47]} 22. Bxh6 {[%clk 0:01:33]}  Qc6 {[%clk 0:01:22]} 23. Bg5 {[%clk 0:01:20]}  Rd4 {[%clk 0:01:12]} 24. Rf2 {[%clk 0:01:11]}  Ne4 {[%clk 0:01:05]} 25. Rf4 {[%clk 0:00:58]}  Rd2 {[%clk 0:00:51]} 26. Qxe4 {[%clk 0:00:49]}  Qc5+ {[%clk 0:00:39]} 27. Qe3 {[%clk 0:00:43]}  Rxg2+ {[%clk 0:00:36]} 28. Kf1 {[%clk 0:00:43]}  Rxc2 {[%clk 0:00:23]} 29. Qxc5 {[%clk 0:00:41]}  bxc5 {[%clk 0:00:24]} 30. Re2 {[%clk 0:00:35]}  Rc3 {[%clk 0:00:20]} 31. Be7 {[%clk 0:00:15]}  Rb8 {[%clk 0:00:16]} 32. Bd6 {[%clk 0:00:14]}  Rc8 {[%clk 0:00:16]} 33. Ref2 {[%clk 0:00:09]}  Ba6 {[%clk 0:00:16]} 34. Rxf7 {[%clk 0:00:08]}  Bxc4+ {[%clk 0:00:15]} 35. Kg2 {[%clk 0:00:09]}  Bd5+ {[%clk 0:00:14]} 36. Kh2 {[%clk 0:00:09]}  Rc4 {[%clk 0:00:12]} 37. Bf8 {[%clk 0:00:09]}  Be4 {[%clk 0:00:06]} 38. Bxg7 {[%clk 0:00:08]}  Bg6 {[%clk 0:00:07]} 39. Rxa7 {[%clk 0:00:08]}  Rd8 {[%clk 0:00:06]} 40. Bf6 {[%clk 0:00:08]}  Rd3 {[%clk 0:00:06]} 41. Rg7+ {[%clk 0:00:08]}  Kf8 {[%clk 0:00:06]} 42. Rxg6 {[%clk 0:00:08]}  Kf7 {[%clk 0:00:06]} 43. Rg7+ {[%clk 0:00:08]}  Kf8 {[%clk 0:00:06]} 44. Rb2 {[%clk 0:00:08]}  Rcc3 {[%clk 0:00:06]} 45. Rb8+ {[%clk 0:00:07]} 1-0


[Site "https://www.chess.com"]

[Event "Titled Tuesday Blitz March 14 Late 2023"]
[White "Filgueiras, Nathan Felipe"]
[Black "Cuenca Jimenez, Jose Fernando"]
[WhiteFideId "2188562"]
[BlackFideId "2255570"]
[WhiteElo "2241"]
[BlackElo "2429"]
[Result "1-0"]
[Round "05"]
[TimeControl "180+1"]
[Date "2023.03.14"]
[WhiteClock "0:00:05"]
[BlackClock "0:00:01"]

1. e4 {[%clk 0:02:58]}  c5 {[%clk 0:03:00]} 2. Nf3 {[%clk 0:02:54]}  Nc6 {[%clk 0:03:00]} 3. d4 {[%clk 0:02:54]}  cxd4 {[%clk 0:03:01]} 4. Nxd4 {[%clk 0:02:55]}  e5 {[%clk 0:03:01]} 5. Nb5 {[%clk 0:02:54]}  d6 {[%clk 0:03:01]} 6. a4 {[%clk 0:02:50]}  Be7 {[%clk 0:02:49]} 7. N1c3 {[%clk 0:02:47]}  a6 {[%clk 0:02:46]} 8. Na3 {[%clk 0:02:47]}  Nf6 {[%clk 0:02:45]} 9. Bc4 {[%clk 0:02:43]}  O-O {[%clk 0:02:39]} 10. O-O {[%clk 0:02:42]}  Be6 {[%clk 0:02:33]} 11. Bg5 {[%clk 0:02:38]}  Rc8 {[%clk 0:02:19]} 12. Bxf6 {[%clk 0:02:37]}  Bxf6 {[%clk 0:02:19]} 13. Nd5 {[%clk 0:02:37]}  Bg5 {[%clk 0:02:15]} 14. c3 {[%clk 0:02:37]}  g6 {[%clk 0:02:13]} 15. Qe2 {[%clk 0:02:27]}  Kh8 {[%clk 0:01:52]} 16. Rad1 {[%clk 0:02:26]}  Qa5 {[%clk 0:01:33]} 17. Nc2 {[%clk 0:01:31]}  Ne7 {[%clk 0:01:05]} 18. Ncb4 {[%clk 0:01:20]}  Qxa4 {[%clk 0:00:52]} 19. Ra1 {[%clk 0:00:16]}  Qe8 {[%clk 0:00:47]} 20. Rfd1 {[%clk 0:00:16]}  Nc6 {[%clk 0:00:38]} 21. Nb6 {[%clk 0:00:14]}  Bxc4 {[%clk 0:00:33]} 22. Nxc4 {[%clk 0:00:13]}  Nxb4 {[%clk 0:00:31]} 23. Nxd6 {[%clk 0:00:13]}  Qe6 {[%clk 0:00:11]} 24. Nxc8 {[%clk 0:00:12]}  Nc6 {[%clk 0:00:10]} 25. Nd6 {[%clk 0:00:12]}  Qe7 {[%clk 0:00:09]} 26. Nc4 {[%clk 0:00:11]}  Qc5 {[%clk 0:00:08]} 27. Ne3 {[%clk 0:00:10]}  Kg7 {[%clk 0:00:07]} 28. Nd5 {[%clk 0:00:11]}  Bd8 {[%clk 0:00:06]} 29. b4 {[%clk 0:00:11]}  Qd6 {[%clk 0:00:05]} 30. Rab1 {[%clk 0:00:10]}  b5 {[%clk 0:00:04]} 31. Ra1 {[%clk 0:00:09]}  Nb8 {[%clk 0:00:05]} 32. Rac1 {[%clk 0:00:09]}  Qe6 {[%clk 0:00:04]} 33. c4 {[%clk 0:00:09]}  bxc4 {[%clk 0:00:05]} 34. Rxc4 {[%clk 0:00:09]}  h5 {[%clk 0:00:04]} 35. Kf1 {[%clk 0:00:09]}  h4 {[%clk 0:00:04]} 36. Rdc1 {[%clk 0:00:09]}  h3 {[%clk 0:00:04]} 37. g3 {[%clk 0:00:10]}  Qd7 {[%clk 0:00:03]} 38. Qb2 {[%clk 0:00:08]}  Qd6 {[%clk 0:00:02]} 39. b5 {[%clk 0:00:06]}  axb5 {[%clk 0:00:02]} 40. Qxb5 {[%clk 0:00:07]}  Bg5 {[%clk 0:00:02]} 41. R1c2 {[%clk 0:00:07]}  Qd8 {[%clk 0:00:02]} 42. Qb2 {[%clk 0:00:06]}  Nd7 {[%clk 0:00:02]} 43. Rc7 {[%clk 0:00:05]}  Re8 {[%clk 0:00:01]} 44. Qb5 {[%clk 0:00:03]}  Nf6 {[%clk 0:00:01]} 45. Qe2 {[%clk 0:00:02]}  Nxd5 {[%clk 0:00:01]} 46. exd5 {[%clk 0:00:03]}  Qxd5 {[%clk 0:00:01]} 47. f3 {[%clk 0:00:03]}  Qa5 {[%clk 0:00:01]} 48. Kf2 {[%clk 0:00:03]}  Qa1 {[%clk 0:00:01]} 49. R7c5 {[%clk 0:00:04]}  Qd4+ {[%clk 0:00:01]} 50. Qe3 {[%clk 0:00:04]}  Qd6 {[%clk 0:00:02]} 51. Qxg5 {[%clk 0:00:04]}  Qd4+ {[%clk 0:00:03]} 52. Qe3 {[%clk 0:00:04]}  Qd6 {[%clk 0:00:03]} 53. R5c3 {[%clk 0:00:05]}  e4 {[%clk 0:00:02]} 54. f4 {[%clk 0:00:04]}  Qd1 {[%clk 0:00:02]} 55. Re2 {[%clk 0:00:04]}  Qh1 {[%clk 0:00:03]} 56. Qd4+ {[%clk 0:00:05]}  Kh7 {[%clk 0:00:02]} 57. Ke3 {[%clk 0:00:06]}  Qf3+ {[%clk 0:00:01]} 58. Kd2 {[%clk 0:00:06]}  Qf1 {[%clk 0:00:01]} 59. Kc2 {[%clk 0:00:06]}  Qa1 {[%clk 0:00:01]} 60. Rxe4 {[%clk 0:00:06]}  Qa2+ {[%clk 0:00:01]} 61. Kd3 {[%clk 0:00:05]}  Qb1+ {[%clk 0:00:01]} 62. Ke3 {[%clk 0:00:06]}  Qe1+ {[%clk 0:00:01]} 63. Kd3 {[%clk 0:00:05]} 1-0


[Site "https://www.chess.com"]

[Event "Titled Tuesday Blitz March 14 Late 2023"]
[White "Foerster-Yialamas, Lucas"]
[Black "Atakhan, Abtin"]
[WhiteFideId "30901774"]
[BlackFideId "22502203"]
[WhiteElo "2067"]
[BlackElo "2008"]
[Result "0-1"]
[Round "05"]
[TimeControl "180+1"]
[Date "2023.03.14"]
[WhiteClock "0:02:13"]
[BlackClock "0:02:19"]

1. e4 {[%clk 0:02:55]}  c5 {[%clk 0:02:58]} 2. Nf3 {[%clk 0:02:55]}  d6 {[%clk 0:02:57]} 3. d4 {[%clk 0:02:55]}  cxd4 {[%clk 0:02:57]} 4. Nxd4 {[%clk 0:02:55]}  Nf6 {[%clk 0:02:57]} 5. Nc3 {[%clk 0:02:56]}  a6 {[%clk 0:02:58]} 6. Bg5 {[%clk 0:02:56]}  e6 {[%clk 0:02:57]} 7. Qd2 {[%clk 0:02:56]}  h6 {[%clk 0:02:54]} 8. Bh4 {[%clk 0:02:54]}  b5 {[%clk 0:02:39]} 9. a3 {[%clk 0:02:46]}  Nxe4 {[%clk 0:02:30]} 10. Qf4 {[%clk 0:02:15]}  Nf6 {[%clk 0:02:20]} 11. Nc6 {[%clk 0:02:13]}  Nxc6 {[%clk 0:02:19]} 0-1


[Site "https://www.chess.com"]

[Event "Titled Tuesday Blitz March 14 Late 2023"]
[White "Galchenko, Matvey"]
[Black "Gubajdullin, Alexei"]
[WhiteFideId "24175480"]
[BlackFideId "4141202"]
[WhiteElo "2404"]
[BlackElo "2267"]
[Result "1-0"]
[Round "05"]
[TimeControl "180+1"]
[Date "2023.03.14"]
[WhiteClock "0:00:05"]
[BlackClock "0:00:01"]

1. f4 {[%clk 0:02:58]}  Nf6 {[%clk 0:02:58]} 2. Nf3 {[%clk 0:02:58]}  g6 {[%clk 0:02:58]} 3. g3 {[%clk 0:02:58]}  Bg7 {[%clk 0:02:58]} 4. Bg2 {[%clk 0:02:59]}  O-O {[%clk 0:02:58]} 5. O-O {[%clk 0:03:00]}  c5 {[%clk 0:02:58]} 6. d3 {[%clk 0:03:01]}  Nc6 {[%clk 0:02:58]} 7. Nc3 {[%clk 0:03:00]}  d6 {[%clk 0:02:58]} 8. e4 {[%clk 0:03:00]}  Bg4 {[%clk 0:02:58]} 9. h3 {[%clk 0:03:00]}  Bxf3 {[%clk 0:02:57]} 10. Qxf3 {[%clk 0:03:01]}  Nd4 {[%clk 0:02:56]} 11. Qf2 {[%clk 0:03:02]}  Rb8 {[%clk 0:02:56]} 12. a4 {[%clk 0:03:02]}  a6 {[%clk 0:02:56]} 13. g4 {[%clk 0:03:01]}  b5 {[%clk 0:02:54]} 14. axb5 {[%clk 0:03:02]}  axb5 {[%clk 0:02:54]} 15. Nd1 {[%clk 0:02:50]}  Nd7 {[%clk 0:02:49]} 16. Ne3 {[%clk 0:02:42]}  Ra8 {[%clk 0:02:29]} 17. Rb1 {[%clk 0:02:34]}  Ra2 {[%clk 0:02:27]} 18. g5 {[%clk 0:02:31]}  e6 {[%clk 0:02:24]} 19. h4 {[%clk 0:02:27]}  Qc7 {[%clk 0:02:13]} 20. f5 {[%clk 0:02:22]}  Ne5 {[%clk 0:01:42]} 21. h5 {[%clk 0:01:25]}  Re8 {[%clk 0:01:25]} 22. Bd2 {[%clk 0:01:11]}  c4 {[%clk 0:01:17]} 23. Bc3 {[%clk 0:01:07]}  Qc5 {[%clk 0:00:45]} 24. h6 {[%clk 0:00:36]}  Bh8 {[%clk 0:00:32]} 25. Kh1 {[%clk 0:00:36]}  cxd3 {[%clk 0:00:28]} 26. fxg6 {[%clk 0:00:30]}  hxg6 {[%clk 0:00:23]} 27. Ng4 {[%clk 0:00:23]}  Ndf3 {[%clk 0:00:15]} 28. Bxf3 {[%clk 0:00:18]}  Qxf2 {[%clk 0:00:13]} 29. Rxf2 {[%clk 0:00:18]}  dxc2 {[%clk 0:00:13]} 30. Rbf1 {[%clk 0:00:14]}  Nd3 {[%clk 0:00:12]} 31. Rxc2 {[%clk 0:00:13]}  Rc8 {[%clk 0:00:03]} 32. Be2 {[%clk 0:00:06]}  Rxc3 {[%clk 0:00:02]} 33. Bxd3 {[%clk 0:00:04]}  Rxc2 {[%clk 0:00:01]} 34. Bxc2 {[%clk 0:00:04]}  Rxb2 {[%clk 0:00:02]} 35. Bd3 {[%clk 0:00:04]}  b4 {[%clk 0:00:02]} 36. Rc1 {[%clk 0:00:04]}  Bc3 {[%clk 0:00:03]} 37. Bc4 {[%clk 0:00:02]}  Rd2 {[%clk 0:00:02]} 38. Nf6+ {[%clk 0:00:02]}  Bxf6 {[%clk 0:00:01]} 39. gxf6 {[%clk 0:00:03]}  Kh7 {[%clk 0:00:01]} 40. Rf1 {[%clk 0:00:04]}  Kxh6 {[%clk 0:00:01]} 41. Bxe6 {[%clk 0:00:04]}  Kg5 {[%clk 0:00:01]} 42. Bxf7 {[%clk 0:00:05]}  Rd4 {[%clk 0:00:01]} 43. Bd5 {[%clk 0:00:05]} 1-0


[Site "https://www.chess.com"]

[Event "Titled Tuesday Blitz March 14 Late 2023"]
[White "Garrido Dominguez, Jesus"]
[Black "Bogaudinov, Rushan"]
[WhiteFideId "2254174"]
[BlackFideId "4129288"]
[WhiteElo "2385"]
[BlackElo "1949"]
[Result "1-0"]
[Round "05"]
[TimeControl "180+1"]
[Date "2023.03.14"]
[WhiteClock "0:01:45"]
[BlackClock "0:00:02"]

1. e4 {[%clk 0:03:00]}  a6 {[%clk 0:02:10]} 2. d4 {[%clk 0:02:53]}  e6 {[%clk 0:02:09]} 3. Nc3 {[%clk 0:02:54]}  b5 {[%clk 0:02:09]} 4. Bd3 {[%clk 0:02:54]}  Bb7 {[%clk 0:02:09]} 5. Nf3 {[%clk 0:02:55]}  d6 {[%clk 0:02:08]} 6. O-O {[%clk 0:02:54]}  Be7 {[%clk 0:02:08]} 7. Re1 {[%clk 0:02:55]}  Nf6 {[%clk 0:02:08]} 8. a3 {[%clk 0:02:54]}  c5 {[%clk 0:02:07]} 9. e5 {[%clk 0:02:53]}  dxe5 {[%clk 0:02:06]} 10. dxe5 {[%clk 0:02:53]}  Nd5 {[%clk 0:02:06]} 11. Ne4 {[%clk 0:02:45]}  c4 {[%clk 0:02:03]} 12. Bf1 {[%clk 0:02:45]}  Nc6 {[%clk 0:02:01]} 13. Qe2 {[%clk 0:02:43]}  Qc7 {[%clk 0:01:59]} 14. Ng3 {[%clk 0:02:35]}  h5 {[%clk 0:01:43]} 15. h4 {[%clk 0:02:35]}  Bc5 {[%clk 0:01:33]} 16. a4 {[%clk 0:02:32]}  Nd4 {[%clk 0:01:13]} 17. Nxd4 {[%clk 0:02:30]}  Bxd4 {[%clk 0:01:14]} 18. axb5 {[%clk 0:02:30]}  axb5 {[%clk 0:01:15]} 19. Rxa8+ {[%clk 0:02:30]}  Bxa8 {[%clk 0:01:16]} 20. Nxh5 {[%clk 0:02:20]}  Bxe5 {[%clk 0:01:11]} 21. Qxe5 {[%clk 0:02:18]}  Qxe5 {[%clk 0:01:11]} 22. Rxe5 {[%clk 0:02:19]}  g6 {[%clk 0:01:00]} 23. Nf4 {[%clk 0:02:15]}  Rxh4 {[%clk 0:00:58]} 24. Nxd5 {[%clk 0:02:15]}  Bxd5 {[%clk 0:00:59]} 25. c3 {[%clk 0:02:13]}  f6 {[%clk 0:00:56]} 26. Re1 {[%clk 0:02:12]}  g5 {[%clk 0:00:53]} 27. f3 {[%clk 0:02:12]}  e5 {[%clk 0:00:46]} 28. g3 {[%clk 0:02:10]}  Rh7 {[%clk 0:00:43]} 29. Bg2 {[%clk 0:02:10]}  Rg7 {[%clk 0:00:36]} 30. Kf2 {[%clk 0:02:07]}  Ke7 {[%clk 0:00:34]} 31. Be3 {[%clk 0:02:04]}  Ke6 {[%clk 0:00:33]} 32. Ra1 {[%clk 0:02:04]}  Rb7 {[%clk 0:00:30]} 33. Ra6+ {[%clk 0:02:04]}  Kf5 {[%clk 0:00:28]} 34. g4+ {[%clk 0:01:54]}  Kg6 {[%clk 0:00:26]} 35. f4 {[%clk 0:01:54]}  Bxg2 {[%clk 0:00:21]} 36. f5+ {[%clk 0:01:54]}  Kf7 {[%clk 0:00:21]} 37. Kxg2 {[%clk 0:01:54]}  b4 {[%clk 0:00:21]} 38. Rb6 {[%clk 0:01:50]}  Rd7 {[%clk 0:00:20]} 39. Rxb4 {[%clk 0:01:48]}  Rd3 {[%clk 0:00:19]} 40. Kf3 {[%clk 0:01:48]}  Rd1 {[%clk 0:00:19]} 41. Rxc4 {[%clk 0:01:48]}  Rf1+ {[%clk 0:00:19]} 42. Ke4 {[%clk 0:01:48]}  Ke7 {[%clk 0:00:15]} 43. Rc6 {[%clk 0:01:48]}  Rb1 {[%clk 0:00:13]} 44. b4 {[%clk 0:01:48]}  Rb2 {[%clk 0:00:12]} 45. Bc5+ {[%clk 0:01:45]}  Kf7 {[%clk 0:00:12]} 46. Rc7+ {[%clk 0:01:45]}  Kg8 {[%clk 0:00:11]} 47. Kd5 {[%clk 0:01:45]}  Rg2 {[%clk 0:00:09]} 48. Ke6 {[%clk 0:01:46]}  Rxg4 {[%clk 0:00:09]} 49. Kxf6 {[%clk 0:01:46]}  Rc4 {[%clk 0:00:06]} 50. Kg6 {[%clk 0:01:46]}  Rxc5 {[%clk 0:00:03]} 51. Rxc5 {[%clk 0:01:46]}  g4 {[%clk 0:00:02]} 52. Rc8# {[%clk 0:01:45]} 1-0


[Site "https://www.chess.com"]

[Event "Titled Tuesday Blitz March 14 Late 2023"]
[White "Golubev, Mikhail"]
[Black "Larino Nieto, David"]
[WhiteFideId "14100983"]
[BlackFideId "2256444"]
[WhiteElo "2374"]
[BlackElo "2506"]
[Result "1-0"]
[Round "05"]
[TimeControl "180+1"]
[Date "2023.03.14"]
[WhiteClock "0:00:19"]
[BlackClock "0:00:18"]

1. e4 {[%clk 0:03:00]}  d5 {[%clk 0:02:59]} 2. exd5 {[%clk 0:03:00]}  Qxd5 {[%clk 0:03:00]} 3. Nf3 {[%clk 0:03:00]}  Nf6 {[%clk 0:03:00]} 4. d4 {[%clk 0:02:58]}  Bg4 {[%clk 0:02:55]} 5. Be2 {[%clk 0:02:58]}  c6 {[%clk 0:02:45]} 6. c4 {[%clk 0:02:56]}  Qd6 {[%clk 0:02:42]} 7. O-O {[%clk 0:02:53]}  Nbd7 {[%clk 0:02:40]} 8. Nc3 {[%clk 0:02:52]}  e6 {[%clk 0:02:40]} 9. h3 {[%clk 0:02:46]}  Bh5 {[%clk 0:02:24]} 10. Be3 {[%clk 0:02:38]}  Be7 {[%clk 0:02:20]} 11. Qd2 {[%clk 0:02:38]}  O-O {[%clk 0:02:14]} 12. Bf4 {[%clk 0:02:29]}  Qb4 {[%clk 0:02:13]} 13. c5 {[%clk 0:02:12]}  Bxf3 {[%clk 0:01:32]} 14. Bxf3 {[%clk 0:02:09]}  Rfd8 {[%clk 0:01:29]} 15. Bc7 {[%clk 0:02:05]}  Rdc8 {[%clk 0:01:24]} 16. a3 {[%clk 0:02:01]}  Qb3 {[%clk 0:01:11]} 17. Bd1 {[%clk 0:01:59]}  Qc4 {[%clk 0:01:06]} 18. Be2 {[%clk 0:01:37]}  Qb3 {[%clk 0:01:05]} 19. Bd1 {[%clk 0:01:37]}  Qc4 {[%clk 0:01:05]} 20. Be2 {[%clk 0:01:38]}  Qxe2 {[%clk 0:00:55]} 21. Qxe2 {[%clk 0:01:31]}  Rxc7 {[%clk 0:00:55]} 22. Rad1 {[%clk 0:01:31]}  Rd8 {[%clk 0:00:53]} 23. d5 {[%clk 0:01:22]}  cxd5 {[%clk 0:00:50]} 24. Nxd5 {[%clk 0:01:20]}  Nxd5 {[%clk 0:00:44]} 25. Rxd5 {[%clk 0:01:20]}  exd5 {[%clk 0:00:41]} 26. Qxe7 {[%clk 0:01:19]}  Rdc8 {[%clk 0:00:41]} 27. Re1 {[%clk 0:01:06]}  h6 {[%clk 0:00:35]} 28. Qd6 {[%clk 0:00:39]}  Nxc5 {[%clk 0:00:35]} 29. Re8+ {[%clk 0:00:37]}  Rxe8 {[%clk 0:00:29]} 30. Qxc7 {[%clk 0:00:37]}  Re1+ {[%clk 0:00:29]} 31. Kh2 {[%clk 0:00:37]}  Ne4 {[%clk 0:00:27]} 32. Qd8+ {[%clk 0:00:31]}  Kh7 {[%clk 0:00:25]} 33. Qxd5 {[%clk 0:00:32]}  Kg8 {[%clk 0:00:19]} 34. Qxb7 {[%clk 0:00:30]}  Nxf2 {[%clk 0:00:16]} 35. Qc8+ {[%clk 0:00:23]}  Kh7 {[%clk 0:00:16]} 36. Qf5+ {[%clk 0:00:24]}  Kg8 {[%clk 0:00:17]} 37. Qxf2 {[%clk 0:00:24]}  Re7 {[%clk 0:00:17]} 38. b4 {[%clk 0:00:23]}  g6 {[%clk 0:00:17]} 39. a4 {[%clk 0:00:24]}  h5 {[%clk 0:00:17]} 40. b5 {[%clk 0:00:24]}  Kg7 {[%clk 0:00:17]} 41. a5 {[%clk 0:00:23]}  g5 {[%clk 0:00:18]} 42. b6 {[%clk 0:00:22]}  axb6 {[%clk 0:00:19]} 43. axb6 {[%clk 0:00:23]}  Kg6 {[%clk 0:00:20]} 44. Qc5 {[%clk 0:00:22]}  Re1 {[%clk 0:00:19]} 45. b7 {[%clk 0:00:20]}  g4 {[%clk 0:00:18]} 46. hxg4 {[%clk 0:00:19]}  hxg4 {[%clk 0:00:18]} 47. b8=Q {[%clk 0:00:19]} 1-0


[Site "https://www.chess.com"]